bitfinex/quotes_SOLUSD_20251103
["timestamp","ask_amount","ask_price","bid_price","bid_amount"]
[1762177105952,3.80685613,176.49,176.46,19.83444077]
[1762177106327,4.48685613,176.49,176.46,19.83444077]
[1762177107145,0.68,176.49,176.46,19.83444077]
[1762177107350,0.68,176.49,176.46,20.52444077]
[1762177107558,4.48504654,176.49,176.46,19.83444077]
[1762177107764,4.48504654,176.49,176.46,5.66692406]
[1762177107765,3.80504654,176.48,176.46,5.66692406]
[1762177108045,3.4905797,176.47,176.46,5.66692406]
[1762177108251,2.8305797,176.48,176.46,5.66692406]
[1762177108558,6.63463016,176.49,176.46,5.66692406]
[1762177108727,3.80405046,176.48,176.46,5.66692406]
[1762177109037,0.66,176.48,176.46,5.66692406]
[1762177109350,3.4905797,176.5,176.46,19.83444077]
[1762177109530,6.63463016,176.5,176.46,19.83444077]
[1762177109732,3.80405046,176.5,176.47,0.69]
[1762177109932,3.80405046,176.5,176.47,3.5205797]
[1762177110446,3.80405046,176.51,176.48,0.69]
[1762177111163,4.46405046,176.51,176.46,23.35502047]
[1762177111326,0.66,176.51,176.46,22.66502047]
[1762177111528,4.46405046,176.51,176.48,19.83227561]
[1762177111828,0.66,176.51,176.48,19.83227561]
[1762177112031,0.66,176.5,176.48,19.83227561]
[1762177112334,0.66,176.51,176.48,19.83227561]
[1762177112545,4.46405046,176.51,176.48,19.83227561]
[1762177112737,0.66,176.51,176.48,19.83227561]
[1762177112949,3.80405046,176.51,176.48,19.83227561]
[1762177113264,3.80405046,176.52,176.49,0.69]
[1762177113553,3.80405046,176.53,176.48,22.66285531]
[1762177113752,4.46405046,176.53,176.48,19.83227561]
[1762177113929,0.66,176.52,176.48,20.52227561]
[1762177114637,0.66,176.52,176.48,19.83227561]
[1762177114837,7.29463016,176.52,176.48,19.83227561]
[1762177115049,3.4905797,176.51,176.48,19.83227561]
[1762177115756,0.66,176.51,176.48,14.16591115]
[1762177116130,0.66,176.51,176.47,5.66668555]
[1762177116333,2.8305797,176.48,176.47,5.66668555]
[1762177116829,3.4905797,176.48,176.46,5.66689896]
[1762177117543,3.4905797,176.48,176.44,26.25941108]
[1762177117544,0.66,176.47,176.44,26.25941108]
[1762177117744,3.4905797,176.48,176.44,26.94941108]
[1762177118143,3.80405046,176.5,176.45,3.5205797]
[1762177118341,0.66,176.51,176.46,12.61940739]
[1762177118541,0.66,176.51,176.46,13.30940739]
[1762177118850,0.66,176.51,176.46,12.61940739]
[1762177119059,0.66,176.51,176.47,0.69]
[1762177119354,2.8305797,176.52,176.47,0.69]
[1762177119655,3.4905797,176.52,176.47,0.69]
[1762177120059,3.4905797,176.52,176.48,5.66636446]
[1762177120060,0.66,176.51,176.48,5.66636446]
[1762177120650,3.4905797,176.51,176.48,5.66636446]
[1762177120842,2.8305797,176.5,176.48,5.66636446]
[1762177121553,7.29463016,176.51,176.48,5.66636446]
[1762177121761,3.4905797,176.51,176.48,5.66636446]
[1762177121963,7.29463016,176.51,176.48,5.66636446]
[1762177122143,3.4905797,176.51,176.47,19.83279814]
[1762177122343,7.29463016,176.51,176.47,20.52279814]
[1762177122538,3.4905797,176.51,176.47,20.52279814]
[1762177122755,7.29463016,176.51,176.47,20.52279814]
[1762177122962,3.4905797,176.51,176.47,20.52279814]
[1762177123262,7.29463016,176.51,176.47,20.52279814]
[1762177123463,3.4905797,176.51,176.47,20.52279814]
[1762177123634,7.29463016,176.51,176.47,20.52279814]
[1762177123838,3.4905797,176.51,176.47,20.52279814]
[1762177124060,7.29463016,176.51,176.47,20.52279814]
[1762177124261,3.4905797,176.51,176.47,20.52279814]
[1762177124964,0.66,176.51,176.47,20.52279814]
[1762177125564,7.29463016,176.51,176.47,19.83279814]
[1762177125765,3.4905797,176.51,176.47,19.83279814]
[1762177125966,0.71,176.5,176.47,19.83279814]
[1762177126458,4.51405046,176.5,176.47,20.54279814]
[1762177127559,4.51405046,176.5,176.47,19.83279814]
[1762177128057,4.51405046,176.5,176.47,20.54279814]
[1762177128359,2.8305797,176.51,176.47,20.54279814]
[1762177128664,3.80546823,176.5,176.47,20.54279814]
[1762177129255,0.71,176.5,176.47,20.54279814]
[1762177129754,3.80646468,176.5,176.48,0.71]
[1762177129959,3.80646468,176.51,176.48,0.71]
[1762177130165,3.80646468,176.5,176.48,0.71]
[1762177130366,3.5405797,176.52,176.48,0.71]
[1762177130566,3.8074775,176.51,176.48,0.71]
[1762177130765,3.8074775,176.5,176.47,19.83279814]
[1762177130963,0.71,176.5,176.47,20.54279814]
[1762177131272,3.80864254,176.49,176.47,20.54279814]
[1762177131567,3.80864254,176.49,176.47,19.83279814]
[1762177132040,2.8305797,176.51,176.47,19.83279814]
[1762177132245,3.80877358,176.5,176.48,0.71]
[1762177132444,2.8305797,176.51,176.48,0.71]
[1762177132667,3.80992308,176.5,176.48,0.71]
[1762177132865,3.5405797,176.51,176.48,0.71]
[1762177133045,3.8100523,176.5,176.48,0.71]
[1762177133244,7.35153527,176.49,176.47,5.66668555]
[1762177133442,3.81126399,176.48,176.47,5.66668555]
[1762177133653,4.52126399,176.48,176.45,19.83538177]
[1762177133853,4.52126399,176.48,176.45,20.54538177]
[1762177133854,0.71,176.48,176.45,20.54538177]
[1762177134261,6.64348246,176.47,176.45,5.66732785]
[1762177134469,2.8305797,176.47,176.45,5.66732785]
[1762177134672,0.71,176.47,176.45,5.66732785]
[1762177135249,3.81307149,176.46,176.45,5.66732785]
[1762177135454,3.81307149,176.46,176.43,5.66797029]
[1762177135455,6.64365119,176.46,176.43,5.66797029]
[1762177135755,3.81307149,176.45,176.42,19.83881163]
[1762177135960,3.81307149,176.44,176.42,19.83881163]
[1762177136172,0.71,176.46,176.43,0.71]
[1762177136373,3.81638839,176.45,176.42,20.54881163]
[1762177136572,3.81638839,176.44,176.42,5.66829157]
[1762177136770,3.81638839,176.43,176.42,5.66829157]
[1762177137069,0.14216157,176.49,176.42,5.66829157]
[1762177137070,4.76633705,176.5,176.46,30.38082769]
[1762177137268,0.71,176.53,176.49,2.8305797]
[1762177137462,0.71,176.52,176.48,9.78882769]
[1762177137665,0.71,176.52,176.49,5.6660434]
[1762177139369,0.71,176.52,176.48,2.8305797]
[1762177139370,0.71,176.52,176.48,5.66636446]
[1762177139566,0.71,176.52,176.48,8.49694416]
[1762177139764,0.71,176.52,176.48,9.20694416]
[1762177140073,0.71,176.52,176.48,23.37285531]
[1762177140873,0.71,176.54,176.51,2.8305797]
[1762177141065,3.5405797,176.56,176.51,2.8305797]
[1762177141266,0.71,176.55,176.52,5.66508044]
[1762177142062,3.5405797,176.55,176.52,5.66508044]
[1762177142679,0.71,176.54,176.52,5.66508044]
[1762177143060,0.71,176.54,176.5,19.82923168]
[1762177143565,3.5405797,176.54,176.5,20.53923168]
[1762177144154,2.8305797,176.51,176.48,5.66636446]
[1762177144390,3.5405797,176.5,176.48,5.66636446]
[1762177144554,2.8305797,176.49,176.42,9.78882769]
[1762177144756,2.8305797,176.46,176.42,9.78882769]
[1762177144954,2.8305797,176.49,176.44,2.8305797]
[1762177145255,2.8305797,176.52,176.47,2.8305797]
[1762177145454,8.31812492,176.54,176.49,2.8305797]
[1762177145654,3.5405797,176.54,176.49,2.8305797]
[1762177145854,0.71,176.53,176.49,3.5405797]
[1762177146466,0.71,176.53,176.49,0.71]
[1762177146982,3.5405797,176.53,176.49,0.71]
[1762177147168,8.31812492,176.53,176.49,19.8311519]
[1762177147363,0.71,176.52,176.49,19.8311519]
[1762177147677,4.77754522,176.55,176.51,2.8305797]
[1762177147894,5.48754522,176.56,176.52,0.71]
[1762177148092,5.48754522,176.56,176.51,2.8305797]
[1762177148294,0.71,176.55,176.51,3.5405797]
[1762177148587,7.60812492,176.57,176.52,0.71]
[1762177148775,3.5405797,176.57,176.52,0.71]
[1762177149091,3.82054703,176.56,176.52,0.71]
[1762177149300,3.82054703,176.55,176.53,5.66475953]
[1762177149459,3.82054703,176.54,176.53,5.66475953]
[1762177150096,3.82054703,176.54,176.53,18.28416692]
[1762177150387,1e-08,176.58,176.53,32.44606574]
[1762177150558,3.81773619,176.57,176.55,12.61940739]
[1762177150757,3.81773619,176.56,176.55,12.61940739]
[1762177150979,3.81773619,176.56,176.55,10.49882769]
[1762177151161,3.81773619,176.56,176.55,12.61940739]
[1762177151359,3.81773619,176.56,176.55,18.2835252]
[1762177151581,3.81773619,176.56,176.55,16.1629455]
[1762177151884,1e-08,176.58,176.55,18.9935252]
[1762177152058,3.8156596,176.57,176.56,0.71]
[1762177152756,3.8156596,176.57,176.56,10.49882769]
[1762177152951,1e-08,176.58,176.56,13.32940739]
[1762177153155,1e-08,176.58,176.57,0.67]
[1762177153357,3.81393749,176.58,176.57,6.33347624]
[1762177153981,1e-08,176.58,176.57,6.33347624]
[1762177154372,1e-08,176.58,176.57,18.95288363]
[1762177155078,1e-08,176.58,176.57,5.66347624]
[1762177155285,1e-08,176.58,176.57,6.33347624]
[1762177155455,1e-08,176.58,176.57,5.66347624]
[1762177157076,1e-08,176.58,176.56,5.663797]
[1762177158172,3.4905797,176.57,176.56,5.663797]
[1762177158981,0.66000001,176.58,176.56,5.663797]
[1762177159177,0.66000001,176.58,176.55,14.16029453]
[1762177159581,3.49057971,176.58,176.55,14.16029453]
[1762177159876,2.8305797,176.56,176.54,5.66443865]
[1762177160076,0.66,176.57,176.54,5.66443865]
[1762177160283,2.8305797,176.56,176.54,5.66443865]
[1762177160785,1e-08,176.58,176.54,22.65611498]
[1762177160786,0.66000001,176.58,176.54,22.65611498]
[1762177160995,2.8305797,176.56,176.54,5.66443865]
[1762177161168,3.4905797,176.57,176.53,5.66475953]
[1762177161362,3.4905797,176.57,176.53,19.82665835]
[1762177161562,0.66,176.56,176.53,19.82665835]
[1762177162093,3.4905797,176.56,176.53,19.82665835]
[1762177162292,0.66,176.56,176.53,20.49665835]
[1762177163391,0.66,176.56,176.53,19.82665835]
[1762177163760,2.47040108,176.56,176.53,5.66475953]
[1762177163970,1.81040108,176.54,176.52,5.66484269]
[1762177164178,2.47040108,176.54,176.52,5.66484269]
[1762177165193,2.47040108,176.53,176.49,5.6660434]
[1762177165370,1.81040108,176.51,176.49,5.6660434]
[1762177165888,0.66,176.5,176.49,5.6660434]
[1762177166086,1.81040108,176.51,176.48,5.66628935]
[1762177166390,0.66,176.5,176.48,5.66628935]
[1762177166805,0.71,176.52,176.48,19.8322005]
[1762177166974,2.52040108,176.52,176.48,19.8322005]
[1762177167169,2.52040108,176.52,176.48,20.5122005]
[1762177167376,0.71,176.52,176.48,20.5122005]
[1762177167777,0.71,176.54,176.5,1.81040108]
[1762177168079,0.71,176.54,176.5,2.49040108]
[1762177169077,2.52040108,176.54,176.49,9.78882769]
[1762177169291,0.71,176.54,176.51,5.66540139]
[1762177169490,2.52040108,176.54,176.51,5.66540139]
[1762177170694,0.71,176.54,176.51,5.66540139]
[1762177172398,2.52040108,176.54,176.51,5.66540139]
[1762177172775,0.71,176.53,176.51,5.66540139]
[1762177173187,1.81040108,176.54,176.51,5.66540139]
[1762177173498,1.81040108,176.54,176.49,14.84445112]
[1762177173499,0.71,176.53,176.5,5.66572237]
[1762177173694,2.52040108,176.53,176.5,5.66572237]
[1762177174076,2.52040108,176.53,176.5,6.34572237]
[1762177174393,1.81040108,176.53,176.5,5.66572237]
[1762177174695,2.52040108,176.53,176.5,5.66572237]
[1762177174880,1.81040108,176.53,176.5,6.34572237]
[1762177176098,2.52040108,176.53,176.5,6.34572237]
[1762177176297,1.81040108,176.53,176.49,5.66594133]
[1762177176481,1.81040108,176.52,176.49,6.34594133]
[1762177176993,2.52040108,176.52,176.49,5.66594133]
[1762177177496,2.52040108,176.51,176.49,5.66594133]
[1762177177896,1.81040108,176.51,176.47,19.83282875]
[1762177178080,2.52040108,176.5,176.47,19.83282875]
[1762177178485,2.52040108,176.5,176.47,5.66668555]
[1762177178486,0.71,176.49,176.47,5.66668555]
[1762177178805,0.71,176.49,176.43,24.63497089]
[1762177178806,1.81040108,176.48,176.43,44.55066578]
[1762177178975,1.81040108,176.46,176.42,5.66829157]
[1762177179490,0.71,176.45,176.42,5.66829157]
[1762177180102,0.71,176.45,176.41,19.84004849]
[1762177180876,1.81040108,176.44,176.41,5.66861289]
[1762177181081,1.81040108,176.44,176.38,5.66951971]
[1762177181082,1.81040108,176.42,176.38,5.66951971]
[1762177181505,2.52040108,176.42,176.38,6.34951971]
[1762177181697,0.71,176.42,176.38,6.34951971]
[1762177181897,0.71,176.42,176.38,20.52346233]
[1762177182179,1.81040108,176.43,176.38,6.34951971]
[1762177182384,1.81040108,176.43,176.39,0.68]
[1762177184207,1.81040108,176.42,176.4,5.66893424]
[1762177184415,1.81040108,176.42,176.39,5.6691878]
[1762177184597,2.48040108,176.42,176.39,5.6691878]
[1762177184800,2.48040108,176.41,176.37,5.6698985]
[1762177185091,1.81040108,176.39,176.37,5.6698985]
[1762177185491,1.81040108,176.4,176.37,5.6698985]
[1762177185906,2.48040108,176.4,176.37,5.6698985]
[1762177186199,1.81040108,176.41,176.35,8.18094261]
[1762177186405,1.81040108,176.41,176.36,0.7]
[1762177187300,1.81040108,176.41,176.37,5.6698985]
[1762177187688,1.81040108,176.41,176.37,6.3698985]
[1762177188190,0.67,176.42,176.37,6.3698985]
[1762177188499,1.81040108,176.41,176.37,6.3698985]
[1762177190216,0.67,176.4,176.37,5.6698985]
[1762177190403,2.48040108,176.4,176.37,5.6698985]
[1762177190795,1.81040108,176.4,176.37,5.6698985]
[1762177191102,1.81040108,176.41,176.37,5.6698985]
[1762177191296,1.81040108,176.41,176.37,20.54464477]
[1762177191514,0.14216157,176.44,176.38,0.7]
[1762177191711,1.81040108,176.43,176.38,2.51040108]
[1762177192214,1.81040108,176.43,176.39,0.7]
[1762177192512,1.81040108,176.43,176.4,5.66893424]
[1762177192513,2.48040108,176.43,176.4,5.66893424]
[1762177193786,0.14216157,176.44,176.37,0.7]
[1762177193787,1.81040108,176.41,176.37,0.7]
[1762177193989,1.81040108,176.41,176.37,6.36982089]
[1762177194410,1.81040108,176.42,176.38,0.7]
[1762177196512,1.81040108,176.42,176.39,5.66925562]
[1762177197216,1.95256265,176.44,176.4,0.7]
[1762177197702,1.81040108,176.43,176.39,5.66925562]
[1762177198020,1.81040108,176.44,176.4,0.7]
[1762177198213,5.60117706,176.45,176.4,2.51040108]
[1762177198609,1.81040108,176.45,176.41,6.36861289]
[1762177199129,2.48040108,176.45,176.41,6.36861289]
[1762177200207,3.79077598,176.46,176.41,6.36861289]
[1762177200398,1.81040108,176.45,176.41,6.36861289]
[1762177200608,2.48040108,176.45,176.41,6.36861289]
[1762177200923,3.79077598,176.46,176.42,0.7]
[1762177201119,1.81040108,176.45,176.42,0.7]
[1762177201517,1.81040108,176.45,176.41,19.84014511]
[1762177201725,1.81040108,176.45,176.41,6.36861289]
[1762177201726,2.48040108,176.45,176.41,6.36861289]
[1762177201898,20.73416157,176.46,176.4,5.66893424]
[1762177202099,1.81040108,176.44,176.41,0.7]
[1762177203625,5.60117706,176.45,176.41,0.7]
[1762177203797,1.81040108,176.45,176.41,0.7]
[1762177204002,3.79077598,176.47,176.44,1.81040108]
[1762177204305,3.79077598,176.49,176.43,9.78882769]
[1762177204503,3.79077598,176.49,176.45,1.81040108]
[1762177204807,5.60117706,176.49,176.44,2.51040108]
[1762177205125,2.48040108,176.49,176.44,0.7]
[1762177205307,2.48040108,176.48,176.44,0.7]
[1762177205509,1.81040108,176.45,176.42,5.66829157]
[1762177205710,1.81040108,176.44,176.42,5.66829157]
[1762177206034,1.81040108,176.44,176.42,0.7]
[1762177206226,1.81040108,176.46,176.43,0.7]
[1762177206820,3.79077598,176.47,176.43,2.51040108]
[1762177207018,1.81040108,176.49,176.43,2.51040108]
[1762177207216,3.79077598,176.49,176.44,2.51040108]
[1762177207527,3.79077598,176.48,176.44,2.51040108]
[1762177207741,1.81040108,176.48,176.42,2.51040108]
[1762177208041,1.81040108,176.47,176.43,0.7]
[1762177208240,5.60117706,176.48,176.43,0.7]
[1762177208724,1.81040108,176.47,176.43,0.7]
[1762177208910,1.81040108,176.47,176.42,21.64942159]
[1762177208911,6.27117706,176.47,176.42,19.83902051]
[1762177209212,1.81040108,176.47,176.43,0.7]
[1762177209405,5.60117706,176.47,176.43,0.7]
[1762177209610,5.60117706,176.46,176.43,0.7]
[1762177209810,1.81040108,176.46,176.43,0.7]
[1762177210022,1.81040108,176.46,176.44,5.66764905]
[1762177210226,5.60117706,176.46,176.44,5.66764905]
[1762177210523,1.81040108,176.46,176.44,5.66764905]
[1762177210731,5.60117706,176.47,176.44,5.66764905]
[1762177210921,1.81040108,176.45,176.43,5.66793952]
[1762177211123,1.81040108,176.44,176.41,5.66861289]
[1762177211323,1.81040108,176.43,176.41,5.66861289]
[1762177211633,5.60117706,176.44,176.41,6.36861289]
[1762177212511,6.27117706,176.44,176.4,5.66882853]
[1762177212707,1.81040108,176.43,176.4,5.66882853]
[1762177213328,5.60117706,176.43,176.4,6.36882853]
[1762177213537,1.81040108,176.43,176.4,6.36882853]
[1762177214035,3.79077598,176.43,176.4,6.36882853]
[1762177214347,3.80473957,176.42,176.4,6.36882853]
[1762177214527,3.80473957,176.43,176.4,6.36882853]
[1762177214728,3.80473957,176.42,176.4,6.36882853]
[1762177215057,3.80473957,176.43,176.41,0.7]
[1762177215218,1.81040108,176.45,176.41,0.7]
[1762177215419,3.80577838,176.44,176.41,0.7]
[1762177215619,3.80577838,176.43,176.41,0.7]
[1762177215820,1.81040108,176.45,176.41,0.7]
[1762177216034,3.80577697,176.44,176.41,0.7]
[1762177216213,3.80577697,176.43,176.41,0.7]
[1762177216424,1.81040108,176.45,176.42,5.66829157]
[1762177216630,3.80696194,176.44,176.42,5.66829157]
[1762177216823,3.80696194,176.43,176.42,5.66829157]
[1762177217337,3.80696194,176.43,176.42,6.36829157]
[1762177218643,3.80696194,176.43,176.41,5.66861289]
[1762177218845,1.81040108,176.44,176.41,5.66861289]
[1762177219024,4.91970679,176.47,176.41,5.66861289]
[1762177219025,5.62021085,176.43,176.41,5.66861289]
[1762177219334,3.80980977,176.42,176.41,5.66861289]
[1762177219541,5.62021085,176.42,176.39,5.66925562]
[1762177219834,3.80980977,176.41,176.39,5.66925562]
[1762177220041,1.81040108,176.42,176.39,5.66925562]
[1762177220228,3.81201681,176.41,176.39,6.36925562]
[1762177220541,3.81201681,176.4,176.39,6.36925562]
[1762177220841,1.81040108,176.42,176.39,6.36925562]
[1762177221015,3.81345568,176.41,176.39,6.36925562]
[1762177221216,1.81040108,176.42,176.39,6.36925562]
[1762177221435,3.81366122,176.41,176.39,6.36925562]
[1762177221631,3.81366122,176.4,176.39,6.36925562]
[1762177223425,5.6240623,176.4,176.36,5.67012888]
[1762177223636,3.81366122,176.39,176.37,0.7]
[1762177223816,1.81040108,176.4,176.37,0.7]
[1762177223817,3.81366122,176.38,176.37,0.7]
[1762177224617,3.81366122,176.38,176.36,5.67012888]
[1762177224846,2.83395739,176.4,176.36,5.67012888]
[1762177224847,3.81366122,176.37,176.36,6.37012888]
[1762177225143,3.81366122,176.37,176.36,0.7]
[1762177225346,3.81366122,176.37,176.35,5.67054153]
[1762177225520,3.81366122,176.36,176.35,5.67054153]
[1762177225846,6.64761861,176.36,176.34,5.6708075]
[1762177226025,3.81366122,176.35,176.34,5.6708075]
[1762177226426,3.81366122,176.35,176.34,6.3708075]
[1762177228519,3.81765218,176.35,176.34,5.6708075]
[1762177229642,3.81765218,176.35,176.34,6.3708075]
[1762177230749,3.81765218,176.35,176.34,5.6708075]
[1762177231748,7.32160957,176.35,176.33,0.2]
[1762177231940,7.32160957,176.34,176.33,0.2]
[1762177232447,6.65160957,176.34,176.33,0.2]
[1762177233633,7.32160957,176.34,176.33,0.2]
[1762177234137,6.65160957,176.34,176.33,0.2]
[1762177234641,7.32160957,176.34,176.33,0.2]
[1762177235228,7.46377114,176.34,176.33,0.2]
[1762177236348,7.45483223,176.34,176.33,0.2]
[1762177243643,20.592,176.31,176.3,4.2]
[1762177243837,20.592,176.31,176.28,0.2]
[1762177243838,50.0,176.3,176.28,0.2]
[1762177244048,87.16565992,176.29,176.28,0.2]
[1762177244354,90.11090806,176.29,176.28,0.2]
[1762177245651,95.78337955,176.29,176.28,0.2]
[1762177246338,90.11090806,176.29,176.28,0.2]
[1762177247038,95.78337955,176.29,176.28,0.2]
[1762177247235,75.19137955,176.29,176.28,0.2]
[1762177247437,70.592,176.26,176.25,0.2]
[1762177247668,9.93098926,176.25,176.22,0.2]
[1762177247853,17.24365992,176.25,176.22,0.2]
[1762177248053,19.51942585,176.25,176.22,0.2]
[1762177248252,6.22664077,176.25,176.22,0.87]
[1762177248453,24.54287484,176.25,176.22,0.87]
[1762177248636,24.40071327,176.25,176.22,0.87]
[1762177248842,24.40071327,176.25,176.23,0.67]
[1762177249261,24.40071327,176.25,176.23,6.34432233]
[1762177249448,24.40071327,176.25,176.23,0.67]
[1762177249661,24.40071327,176.25,176.24,0.87]
[1762177249861,27.23467066,176.25,176.24,0.2]
[1762177250246,24.40071327,176.25,176.24,0.2]
[1762177251178,24.40071327,176.25,176.24,0.87]
[1762177252070,24.40071327,176.25,176.24,0.2]
[1762177252267,27.37683223,176.25,176.24,0.2]
[1762177252569,28.04683223,176.25,176.24,0.2]
[1762177254247,67.86985396,176.25,176.24,0.2]
[1762177254448,63.12859109,176.25,176.24,0.2]
[1762177254748,12.18789049,176.25,176.24,0.2]
[1762177254948,7.45483223,176.25,176.24,0.2]
[1762177255556,12.18724709,176.25,176.24,0.2]
[1762177256056,7.45483223,176.25,176.24,0.2]
[1762177256253,13.12859109,176.25,176.24,0.2]
[1762177256650,63.12859109,176.25,176.24,0.2]
[1762177257671,20.73416157,176.23,176.22,0.2]
[1762177257851,32.10844447,176.23,176.22,0.2]
[1762177258053,32.77844447,176.23,176.22,0.2]
[1762177261083,27.37683223,176.23,176.22,0.2]
[1762177261281,24.54287484,176.23,176.22,0.87]
[1762177261469,0.14216157,176.22,176.2,5.67534252]
[1762177261669,3.80871327,176.21,176.2,5.67534252]
[1762177262466,3.80871327,176.21,176.19,5.87558453]
[1762177262662,3.80871327,176.2,176.19,5.87558453]
[1762177263280,7.45483223,176.2,176.19,0.2]
[1762177263483,3.80871327,176.2,176.19,0.2]
[1762177263673,6.64267066,176.2,176.19,0.2]
[1762177264167,7.45483223,176.2,176.19,0.2]
[1762177264682,6.78483223,176.2,176.19,0.2]
[1762177265382,7.45483223,176.2,176.19,0.2]
[1762177265888,12.18712924,176.2,176.19,0.2]
[1762177267287,7.45483223,176.2,176.19,0.2]
[1762177267485,13.13020112,176.2,176.19,0.2]
[1762177267663,20.73416157,176.16,176.15,0.2]
[1762177267862,66.57365992,176.16,176.15,0.2]
[1762177268060,59.93098926,176.15,176.14,0.2]
[1762177268269,73.56358027,176.15,176.14,0.2]
[1762177268670,75.84064172,176.15,176.14,0.2]
[1762177268985,153.26093611,176.12,176.11,0.2]
[1762177269287,149.16814964,176.12,176.11,0.2]
[1762177269473,141.3262454,176.12,176.11,0.2]
[1762177269783,143.51360677,176.12,176.11,0.2]
[1762177270669,137.83565992,176.12,176.11,0.2]
[1762177271070,144.15060785,176.12,176.11,0.2]
[1762177271392,143.51360677,176.12,176.11,0.2]
[1762177272691,137.83565992,176.12,176.11,0.2]
[1762177272900,137.81237989,176.12,176.11,0.2]
[1762177273261,143.49032674,176.12,176.11,0.2]
[1762177273462,128.0235522,176.12,176.11,0.2]
[1762177274097,133.70149905,176.12,176.11,0.2]
[1762177274267,128.0235522,176.12,176.11,0.2]
[1762177274473,130.30087293,176.12,176.11,0.2]
[1762177274997,27.3535522,176.12,176.11,0.2]
[1762177275491,27.21139063,176.12,176.11,0.2]
[1762177275695,27.3535522,176.12,176.11,0.2]
[1762177276486,0.14216157,176.11,176.09,0.92]
[1762177276675,3.78543324,176.1,176.09,0.2]
[1762177277291,8.51445406,176.1,176.09,0.2]
[1762177277504,8.51445406,176.1,176.09,5.87891419]
[1762177277684,3.78543324,176.1,176.09,6.59891419]
[1762177281484,3.78543324,176.1,176.09,0.92]
[1762177281685,3.78543324,176.1,176.09,6.59891419]
[1762177285202,3.78543324,176.1,176.09,0.92]
[1762177286276,3.78543324,176.1,176.09,6.59891419]
[1762177291395,3.78543324,176.1,176.09,8.41833437]
[1762177291605,4.72902082,176.16,176.09,22.61561984]
[1762177291792,4.72902082,176.16,176.12,1.81942018]
[1762177291988,6.548441,176.17,176.11,1.81942018]
[1762177292211,6.548441,176.17,176.13,5.67762448]
[1762177292690,6.548441,176.17,176.14,0.72]
[1762177293090,1.81942018,176.17,176.14,0.72]
[1762177293395,1.81942018,176.15,176.11,6.39817376]
[1762177293597,1.81942018,176.14,176.11,0.72]
[1762177293911,0.14216157,176.14,176.1,6.39857823]
[1762177294111,1.81942018,176.13,176.11,0.72]
[1762177294404,20.592,176.16,176.12,7.49736703]
[1762177294612,20.592,176.16,176.13,1.81942018]
[1762177294825,20.592,176.16,176.13,2.53942018]
[1762177295009,20.592,176.16,176.14,0.72]
[1762177295306,20.592,176.16,176.12,7.49736703]
[1762177295511,20.592,176.16,176.13,0.72]
[1762177295917,23.10142018,176.16,176.12,5.67794685]
[1762177296085,1.81942018,176.15,176.12,5.67794685]
[1762177296286,1.81942018,176.15,176.12,0.72]
[1762177297113,20.592,176.12,176.09,0.2]
[1762177297319,22.41142018,176.12,176.09,0.2]
[1762177297617,22.41142018,176.12,176.09,0.92]
[1762177297919,1.81942018,176.11,176.09,0.2]
[1762177300218,1.81942018,176.1,176.09,0.2]
[1762177300715,25.34824596,176.13,176.09,6.59891419]
[1762177300917,22.41142018,176.13,176.09,6.59891419]
[1762177301101,22.41142018,176.13,176.1,0.72]
[1762177301309,20.592,176.12,176.1,0.72]
[1762177302214,20.592,176.12,176.1,6.39847876]
[1762177302596,20.592,176.12,176.11,0.72]
[1762177302927,1.81942018,176.12,176.09,0.2]
[1762177303099,22.41142018,176.13,176.09,6.58881878]
[1762177303301,22.41142018,176.13,176.1,0.71]
[1762177303503,3.81323348,176.12,176.1,0.71]
[1762177303696,3.81323348,176.11,176.1,0.71]
[1762177304312,3.81323348,176.11,176.1,8.20801188]
[1762177304623,3.81323348,176.11,176.1,6.3885917]
[1762177304799,4.75624596,176.16,176.1,22.40449115]
[1762177304994,3.81404277,176.15,176.11,0.71]
[1762177305219,3.81404277,176.14,176.11,0.71]
[1762177305422,3.81404277,176.13,176.11,2.52942018]
[1762177305718,27.16766614,176.17,176.11,2.52942018]
[1762177305923,3.81408492,176.16,176.12,0.71]
[1762177306131,3.81408492,176.15,176.12,0.71]
[1762177306291,3.81408492,176.14,176.13,5.67762448]
[1762177306822,3.81408492,176.14,176.13,6.38762448]
[1762177310206,3.81408492,176.14,176.13,0.71]
[1762177310616,3.81408492,176.14,176.13,6.38762448]